fUSD/lending_fUSD_20260622
["ID","MTS","AMOUNT","RATE_DAILY","PERIOD"]
[425991900,1782081032000,-150.0,0.00014104,2]
[425991887,1782081032000,-150.0,0.00014103,2]
[425991891,1782081032000,-153.0,0.00014104,2]
[425991892,1782081032000,-310.0,0.00014104,2]
[425991888,1782081032000,-30.40242134,0.00014104,2]
[425991889,1782081032000,-127.59757866,0.00014104,2]
[425991890,1782081032000,-152.0,0.00014104,2]
[425991885,1782081032000,-151.0,0.00014103,2]
[425991886,1782081032000,-150.0,0.00014103,2]
[425991893,1782081032000,-310.0,0.00014104,2]
[425991884,1782081032000,-327.0,0.00014103,2]
[425991938,1782081032000,-200.0,0.00014244,2]
[425991934,1782081032000,-152.0,0.00014159,2]
[425991946,1782081032000,-200.0,0.0001453,2]
[425991975,1782081032000,-129.58231356,0.00016116,2]
[425991974,1782081032000,-1589.4,0.00016116,2]
[425991973,1782081032000,-2010.53,0.00016116,2]
[425991977,1782081032000,-243.0,0.00016438,2]
[425991986,1782081032000,-500.0,0.00016438,2]
[425991987,1782081032000,-500.0,0.00016438,2]
[425991982,1782081032000,-500.0,0.00016438,2]
[425991979,1782081032000,-500.0,0.00016438,2]
[425991971,1782081032000,-192.36114914,0.00016,2]
[425991980,1782081032000,-500.0,0.00016438,2]
[425991984,1782081032000,-500.0,0.00016438,2]
[425991981,1782081032000,-500.0,0.00016438,2]
[425991985,1782081032000,-500.0,0.00016438,2]
[425991988,1782081032000,-500.0,0.00016438,2]
[425991989,1782081032000,-500.0,0.00016438,2]
[425991992,1782081032000,-500.0,0.00016438,2]
[425991991,1782081032000,-500.0,0.00016438,2]
[425991940,1782081032000,-150.0,0.00014385,2]
[425991983,1782081032000,-500.0,0.00016438,2]
[425991972,1782081032000,-107.63885086,0.00016,2]
[425991978,1782081032000,-500.0,0.00016438,2]
[425991970,1782081032000,-321.0,0.00015904,2]
[425991969,1782081032000,-321.0,0.00015904,2]
[425991990,1782081032000,-500.0,0.00016438,2]
[425991952,1782081032000,-320.0,0.00014799,2]
[425991954,1782081032000,-316.0,0.00014799,2]
[425991944,1782081032000,-230.0,0.00014526,2]
[425991950,1782081032000,-406.64,0.00014799,2]
[425991956,1782081032000,-500.0,0.00014999,2]
[425991962,1782081032000,-76.42900055,0.00014999,2]
[425991961,1782081032000,-500.0,0.00014999,2]
[425991948,1782081032000,-200.0,0.00014676,2]
[425991960,1782081032000,-392.2092691,0.00014999,2]
[425991958,1782081032000,-500.0,0.00014999,2]
[425991963,1782081032000,-423.57099945,0.00014999,2]
[425991964,1782081032000,-500.0,0.00014999,2]
[425991965,1782081032000,-250.0,0.00015402,2]
[425991967,1782081032000,-300.0,0.00015512,2]
[425991968,1782081032000,-250.0,0.00015512,2]
[425991966,1782081032000,-600.0,0.00015512,2]
[425991959,1782081032000,-500.0,0.00014999,2]
[425991976,1782081032000,-870.40768644,0.00016116,2]
[425992027,1782081033000,-1555.5,0.00018812,2]
[425992028,1782081033000,-1852.42,0.00019195,2]
[425992026,1782081033000,-263.08,0.00018799,2]
[425992022,1782081033000,-316.0,0.00018076,2]
[425992029,1782081033000,-161.6,0.00019252,2]
[425992033,1782081033000,-155.65,0.00019625,2]
[425992030,1782081033000,-536.95,0.00019255,2]
[425992025,1782081033000,-1500.0,0.00018264,2]
[425992031,1782081033000,-1613.0535,0.0001936,2]
[425992023,1782081033000,-318.0,0.00018076,2]
[425992024,1782081033000,-166.0,0.0001808,2]
[425992032,1782081033000,-595.35,0.00019566,2]
[425992044,1782081033000,-3691.2442568,0.00020055,2]
[425992046,1782081033000,-403.0584114,0.00020201,2]
[425992037,1782081033000,-400.0,0.0002,2]
[425992043,1782081033000,-154.0,0.0002,2]
[425992040,1782081033000,-236.0,0.0002,2]
[425992041,1782081033000,-151.0,0.0002,2]
[425992038,1782081033000,-259.0,0.0002,2]
[425992036,1782081033000,-169.97,0.00019957,2]
[425992047,1782081033000,-12687.9261999,0.00020201,2]
[425992039,1782081033000,-427.0,0.0002,2]
[425992042,1782081033000,-375.0,0.0002,2]
[425992045,1782081033000,-765.2995437,0.00020201,2]
[425992034,1782081033000,-166.66,0.00019827,2]
[425992035,1782081033000,-1386.9465,0.00019908,2]
[425992018,1782081033000,-161.42,0.0001651,2]
[425992000,1782081033000,-500.0,0.00016438,2]
[425992015,1782081033000,-500.0,0.00016438,2]
[425991994,1782081033000,-500.0,0.00016438,2]
[425991995,1782081033000,-500.0,0.00016438,2]
[425991997,1782081033000,-500.0,0.00016438,2]
[425991993,1782081033000,-500.0,0.00016438,2]
[425991996,1782081033000,-500.0,0.00016438,2]
[425991998,1782081033000,-500.0,0.00016438,2]
[425992049,1782081033000,-373.3719066,0.00020201,2]
[425991999,1782081033000,-500.0,0.00016438,2]
[425992002,1782081033000,-500.0,0.00016438,2]
[425992007,1782081033000,-500.0,0.00016438,2]
[425992004,1782081033000,-500.0,0.00016438,2]
[425992009,1782081033000,-500.0,0.00016438,2]
[425992017,1782081033000,-161.6,0.00016502,2]
[425992010,1782081033000,-500.0,0.00016438,2]
[425992008,1782081033000,-500.0,0.00016438,2]
[425992001,1782081033000,-540.66592363,0.00016438,2]
[425992006,1782081033000,-500.0,0.00016438,2]
[425992005,1782081033000,-500.0,0.00016438,2]
[425992011,1782081033000,-500.0,0.00016438,2]
[425992014,1782081033000,-565.0,0.00016438,2]
[425992012,1782081033000,-500.0,0.00016438,2]
[425992019,1782081033000,-320.0,0.00016514,2]
[425992020,1782081033000,-219.05464622,0.00016903,2]
[425992016,1782081033000,-500.0,0.00016438,2]
[425992013,1782081033000,-500.0,0.00016438,2]
[425992021,1782081033000,-350.0,0.00018,2]
[425992003,1782081033000,-500.0,0.00016438,2]
[425992059,1782081033000,-500.0,0.00021123,2]
[425992057,1782081033000,-375.0,0.00021,2]
[425992048,1782081033000,-1905.590165,0.00020201,2]
[425992082,1782081033000,-151.0,0.00021552,2]
[425992091,1782081033000,-427.0,0.00022,2]
[425992085,1782081033000,-151.0,0.00021552,2]
[425992083,1782081033000,-151.0,0.00021552,2]
[425992089,1782081033000,-5000.0,0.00021918,2]
[425992084,1782081033000,-151.0,0.00021552,2]
[425992090,1782081033000,-259.0,0.00022,2]
[425992092,1782081033000,-236.0,0.00022,2]
[425992087,1782081033000,-151.0,0.00021552,2]
[425992086,1782081033000,-151.0,0.00021552,2]
[425992088,1782081033000,-166.66,0.00021914,2]
[425992093,1782081033000,-375.0,0.00022,2]
[425992076,1782081033000,-151.0,0.00021552,2]
[425992094,1782081033000,-161.6,0.00022002,2]
[425992050,1782081033000,-166.66,0.00020245,2]
[425992096,1782081033000,-313.0,0.00022227,2]
[425992099,1782081033000,-317.0,0.00022595,2]
[425992095,1782081033000,-313.0,0.00022227,2]
[425992100,1782081033000,-319.0,0.00022595,2]
[425992101,1782081033000,-259.0,0.00023,2]
[425992102,1782081033000,-427.0,0.00023,2]
[425992103,1782081033000,-236.0,0.00023,2]
[425992104,1782081033000,-375.0,0.00023,2]
[425992105,1782081033000,-1276.0,0.00023142,2]
[425992107,1782081033000,-1229.0,0.00023142,2]
[425992106,1782081033000,-1360.0,0.00023142,2]
[425992097,1782081033000,-200.0,0.00022587,2]
[425992077,1782081033000,-151.0,0.00021552,2]
[425992098,1782081033000,-313.0,0.00022595,2]
[425992074,1782081033000,-500.0,0.00021552,2]
[425992080,1782081033000,-151.0,0.00021552,2]
[425992051,1782081033000,-166.66,0.00020662,2]
[425992053,1782081033000,-259.0,0.00021,2]
[425992058,1782081033000,-166.66,0.0002108,2]
[425992056,1782081033000,-157.0,0.00021,2]
[425992052,1782081033000,-500.0,0.00020959,2]
[425992054,1782081033000,-427.0,0.00021,2]
[425992060,1782081033000,-341.62,0.0002118,2]
[425992069,1782081033000,-151.0,0.00021552,2]
[425992065,1782081033000,-150.0,0.00021487,2]
[425992064,1782081033000,-1228.56,0.00021469,2]
[425992070,1782081033000,-151.0,0.00021552,2]
[425992055,1782081033000,-236.0,0.00021,2]
[425992063,1782081033000,-19182.34734737,0.00021399,2]
[425992078,1782081033000,-151.0,0.00021552,2]
[425992062,1782081033000,-7462.31268961,0.00021399,2]
[425992081,1782081033000,-151.0,0.00021552,2]
[425992079,1782081033000,-151.0,0.00021552,2]
[425992073,1782081033000,-151.0,0.00021552,2]
[425992075,1782081033000,-151.0,0.00021552,2]
[425992072,1782081033000,-176.93779743,0.00021552,2]
[425992066,1782081033000,-166.66,0.00021497,2]
[425992068,1782081033000,-151.0,0.00021552,2]
[425992061,1782081033000,-163332.74156302,0.00021399,2]
[425992067,1782081033000,-7120.81,0.00021499,2]
[425992071,1782081033000,-151.0,0.00021552,2]
[425992123,1782081034000,-390.3084661,0.00024968,2]
[425992129,1782081034000,-1939.0,0.00025,10]
[425992127,1782081034000,-441.0,0.00025,2]
[425992137,1782081034000,-1089.54,0.00025627,2]
[425992130,1782081034000,-393.0,0.00025,2]
[425992136,1782081034000,-200.0,0.00025598,2]
[425992138,1782081034000,-155.45410079,0.00025799,2]
[425992128,1782081034000,-248.0,0.00025,2]
[425992131,1782081034000,-1089.54,0.00025121,2]
[425992133,1782081034000,-500.0,0.0002526,2]
[425992139,1782081034000,-187.78006525,0.00025799,2]
[425992135,1782081034000,-1064.15602899,0.00025524,2]
[425992141,1782081034000,-157.20998939,0.00025799,2]
[425992121,1782081034000,-200.0,0.00024845,2]
[425992132,1782081034000,-1064.156029,0.000252,2]
[425992125,1782081034000,-15658.9602821,0.00024968,2]
[425992110,1782081034000,-427.0,0.00024,2]
[425992120,1782081034000,-161.6,0.00024752,2]
[425992140,1782081034000,-165.34641225,0.00025799,2]
[425992108,1782081034000,-200.0,0.0002334,2]
[425992109,1782081034000,-259.0,0.00024,2]
[425992111,1782081034000,-236.0,0.00024,2]
[425992113,1782081034000,-200.0,0.00024093,2]
[425992114,1782081034000,-1089.54,0.0002411,2]
[425992122,1782081034000,-150.0,0.000249,2]
[425992112,1782081034000,-375.0,0.00024,2]
[425992118,1782081034000,-186.76,0.00024658,2]
[425992119,1782081034000,-1000.0,0.00024658,2]
[425992126,1782081034000,-273.0,0.00025,2]
[425992117,1782081034000,-1089.54,0.00024615,2]
[425992115,1782081034000,-2309.242,0.00024515,2]
[425992124,1782081034000,-898.6157029,0.00024968,2]
[425992116,1782081034000,-614.99904283,0.00024581,2]
[425992150,1782081034000,-151.0,0.00025799,2]
[425992134,1782081034000,-2015.0,0.000253,2]
[425992143,1782081034000,-8565.75555912,0.00025799,2]
[425992156,1782081034000,-151.0,0.00025799,2]
[425992163,1782081034000,-3691.2442568,0.00026017,2]
[425992177,1782081034000,-403.0584114,0.00026309,2]
[425992167,1782081034000,-1276.0,0.00026142,2]
[425992168,1782081034000,-1360.0,0.00026142,2]
[425992165,1782081034000,-700.0,0.00026123,2]
[425992166,1782081034000,-1089.54,0.00026133,2]
[425992170,1782081034000,-474.0,0.00026146,10]
[425992176,1782081034000,-765.2995437,0.00026309,2]
[425992169,1782081034000,-1229.0,0.00026142,2]
[425992171,1782081034000,-350.0,0.00026167,2]
[425992172,1782081034000,-1064.15602899,0.00026173,2]
[425992175,1782081034000,-151.0,0.00026296,2]
[425992174,1782081034000,-1336.451,0.0002622,12]
[425992173,1782081034000,-2500.0,0.00026209,2]
[425992162,1782081034000,-173.0,0.00026012,2]
[425992157,1782081034000,-187.78006524,0.00025799,2]
[425992151,1782081034000,-578.20924308,0.00025799,2]
[425992158,1782081034000,-362.78231477,0.00025799,2]
[425992159,1782081034000,-1064.15602899,0.00025849,2]
[425992149,1782081034000,-187.78006525,0.00025799,2]
[425992145,1782081034000,-187.78006525,0.00025799,2]
[425992146,1782081034000,-152.0,0.00025799,2]
[425992147,1782081034000,-5403.80542354,0.00025799,2]
[425992144,1782081034000,-621.78829554,0.00025799,2]
[425992148,1782081034000,-187.78006524,0.00025799,2]
[425992142,1782081034000,-500.0,0.00025799,2]
[425992154,1782081034000,-299.84259992,0.00025799,2]
[425992153,1782081034000,-157.48580004,0.00025799,2]
[425992155,1782081034000,-174.61919141,0.00025799,2]
[425992164,1782081034000,-185.2,0.00026117,2]
[425992178,1782081034000,-6804.85658867,0.00026309,2]
[425992160,1782081034000,-165.34641225,0.00025854,2]
[425992161,1782081034000,-165.34641231,0.00025909,2]
[425992152,1782081034000,-646.65982734,0.00025799,2]
[425992189,1782081035000,-181.08010149,0.00026347,2]
[425992187,1782081035000,-157.48580005,0.00026347,2]
[425992185,1782081035000,-316.96183246,0.00026309,2]
[425992182,1782081035000,-340.48204018,0.00026309,2]
[425992186,1782081035000,-56.41007414,0.00026309,2]
[425992181,1782081035000,-616.43521754,0.00026309,2]
[425992180,1782081035000,-1466.16851797,0.00026309,2]
[425992184,1782081035000,-1905.590165,0.00026309,2]
[425992179,1782081035000,-1254.41808677,0.00026309,2]
[425992190,1782081035000,-151.0,0.00026347,2]
[425992191,1782081035000,-194.72792766,0.00026347,2]
[425992188,1782081035000,-299.84259992,0.00026347,2]
[425992183,1782081035000,-2205.56574877,0.00026309,2]
[425992194,1782081035000,-446.953536,0.00026352,2]
[425992199,1782081035000,-502.37309747,0.00026499,2]
[425992203,1782081035000,-500.0,0.00026499,2]
[425992201,1782081035000,-500.0,0.00026499,2]
[425992198,1782081035000,-1064.15602899,0.00026497,2]
[425992197,1782081035000,-2881.2996,0.00026427,2]
[425992195,1782081035000,-319.49321,0.00026352,2]
[425992200,1782081035000,-516.50658235,0.00026499,2]
[425992192,1782081035000,-362.78231477,0.00026347,2]
[425992202,1782081035000,-550.72092856,0.00026499,2]
[425992193,1782081035000,-200.0,0.00026351,2]
[425992204,1782081035000,-3668.96864835,0.000265,7]
[425992205,1782081035000,-9607.47430077,0.000265,7]
[425992196,1782081035000,-155.0,0.00026352,5]
[425992225,1782081041000,-201.93286098,0.00026895,2]
[425992228,1782081041000,-184.81,0.00026926,2]
[425992227,1782081041000,-350.0,0.00026914,2]
[425992226,1782081041000,-362.78231477,0.00026895,2]
[425992214,1782081041000,-945.0,0.000265,10]
[425992208,1782081041000,-614.28,0.00026179,2]
[425992213,1782081041000,-469.804022,0.000265,2]
[425992212,1782081041000,-50000.0,0.000265,7]
[425992211,1782081041000,-50000.0,0.000265,7]
[425992210,1782081041000,-50000.0,0.000265,5]
[425992224,1782081041000,-187.78006524,0.00026895,2]
[425992209,1782081041000,-30215.88705088,0.000265,7]
[425992215,1782081041000,-200.0,0.00026519,2]
[425992222,1782081041000,-1064.15602899,0.00026822,2]
[425992220,1782081041000,-1089.54,0.00026639,2]
[425992219,1782081041000,-3423.87354444,0.00026575,2]
[425992223,1782081041000,-299.84259992,0.00026895,2]
[425992239,1782081041000,-1118.71044298,0.00027,2]
[425992238,1782081041000,-3280.41379337,0.00027,2]
[425992236,1782081041000,-21090.54887574,0.00027,2]
[425992235,1782081041000,-10000.0,0.00027,2]
[425992234,1782081041000,-10000.0,0.00027,2]
[425992237,1782081041000,-6961.63786956,0.00027,2]
[425992233,1782081041000,-10000.0,0.00027,2]
[425992231,1782081041000,-711.0,0.00026998,5]
[425992229,1782081041000,-185.2,0.00026926,2]
[425992230,1782081041000,-185.2,0.00026959,2]
[425992218,1782081041000,-319.55370361,0.00026574,2]
[425992217,1782081041000,-500.0,0.00026574,2]
[425992232,1782081041000,-500.0,0.00026999,2]
[425992253,1782081043000,-16.80367522,0.00027,2]
[425992258,1782081043000,-397.0,0.00026309,2]
[425992259,1782081043000,-4412.8992304,0.00027,2]
[425992257,1782081043000,-616.28165361,0.000249,2]
[425992260,1782081043000,-474.0,0.00027,10]
[425992261,1782081043000,-5042.2743,0.00027041,2]
[425992262,1782081043000,-316.0,0.000271,2]
[425992265,1782081043000,-501.0,0.00027137,2]
[425992266,1782081043000,-1089.54,0.00027144,2]
[425992267,1782081043000,-1051.99782356,0.00027146,2]
[425992263,1782081043000,-3000.0,0.00027123,3]
[425992264,1782081043000,-659.0,0.00027123,2]
[425992287,1782081046000,-1278.56156596,0.000199,2]
[425992285,1782081046000,-485.15897644,0.00014675,2]
[425992286,1782081046000,-457.49850482,0.000199,2]
[425992284,1782081046000,-152.23251874,0.00014675,2]
[425992292,1782081394000,170.26,0.00026424,120]
[425992293,1782082035000,150.0,0.00030136,120]
[425992379,1782082232000,-151.0,0.00014575,2]
[425992325,1782082232000,-150.0,0.00014574,2]
[425992318,1782082232000,-152.0,0.00014474,2]
[425992319,1782082232000,-151.0,0.00014474,2]
[425992320,1782082232000,-151.0,0.00014474,2]
[425992315,1782082232000,-152.0,0.00014474,2]
[425992317,1782082232000,-150.0,0.00014474,2]
[425992316,1782082232000,-320.0,0.00014474,2]
[425992313,1782082232000,-152.0,0.00014474,2]
[425992311,1782082232000,-153.0,0.00014474,2]
[425992309,1782082232000,-250.0,0.00014,2]
[425992312,1782082232000,-151.0,0.00014474,2]
[425992310,1782082232000,-152.0,0.00014474,2]
[425992308,1782082232000,-235.41276201,0.000139,2]
[425992306,1782082232000,-418.86000127,0.000139,2]
[425992307,1782082232000,-331.31273799,0.000139,2]
[425992304,1782082232000,-158.71826074,0.000139,2]
[425992305,1782082232000,-279.99782542,0.000139,2]
[425992303,1782082232000,-292.00537458,0.0001375,2]
[425992302,1782082232000,-26.85462542,0.0001375,2]
[425992301,1782082232000,-277.14537458,0.00013546,2]
[425992381,1782082232000,-151.0,0.00014575,2]
[425992330,1782082232000,-153.0,0.00014574,2]
[425992322,1782082232000,-151.0,0.00014474,2]
[425992314,1782082232000,-151.0,0.00014474,2]
[425992323,1782082232000,-151.0,0.00014474,2]
[425992377,1782082232000,-315.0,0.00014575,2]
[425992321,1782082232000,-151.0,0.00014474,2]
[425992375,1782082232000,-151.0,0.00014575,2]
[425992374,1782082232000,-312.0,0.00014575,2]
[425992372,1782082232000,-321.0,0.00014575,2]
[425992364,1782082232000,-152.0,0.00014575,2]
[425992370,1782082232000,-150.0,0.00014575,2]
[425992356,1782082232000,-151.0,0.00014575,2]
[425992368,1782082232000,-150.0,0.00014575,2]
[425992366,1782082232000,-151.0,0.00014575,2]
[425992362,1782082232000,-151.0,0.00014575,2]
[425992360,1782082232000,-151.0,0.00014575,2]
[425992354,1782082232000,-151.0,0.00014575,2]
[425992351,1782082232000,-151.0,0.00014575,2]
[425992340,1782082232000,-152.0,0.00014575,2]
[425992334,1782082232000,-150.0,0.00014575,2]
[425992338,1782082232000,-151.0,0.00014575,2]
[425992336,1782082232000,-151.0,0.00014575,2]
[425992324,1782082232000,-150.0,0.00014474,2]
[425992358,1782082232000,-151.0,0.00014575,2]
[425992327,1782082232000,-150.0,0.00014574,2]
[425992332,1782082232000,-163.77,0.00014575,2]
[425992470,1782082233000,-284.88109595,0.00016116,4]
[425992468,1782082233000,-15.10890405,0.00016116,4]
[425992460,1782082233000,-5228.74535504,0.00016116,2]
[425992466,1782082233000,-468.03905927,0.00016116,2]
[425992459,1782082233000,-500.0,0.00016055,2]
[425992455,1782082233000,-3356.765,0.00016016,2]
[425992453,1782082233000,-300.0,0.00016,2]
[425992451,1782082233000,-500.0,0.00015781,2]
[425992436,1782082233000,-309.0,0.00015075,2]
[425992472,1782082233000,-3278.6342155,0.00016116,2]
[425992439,1782082233000,-318.86,0.00015198,2]
[425992457,1782082233000,-33697.054,0.00016016,2]
[425992477,1782082233000,-6721.3557845,0.00016116,2]
[425992498,1782082233000,-152.0,0.00016338,2]
[425992492,1782082233000,-151.0,0.00016338,2]
[425992487,1782082233000,-876.30555547,0.00016337,2]
[425992494,1782082233000,-151.0,0.00016338,2]
[425992481,1782082233000,-154.82852285,0.00016238,2]
[425992485,1782082233000,-500.0,0.00016328,2]
[425992490,1782082233000,-151.0,0.00016338,2]
[425992483,1782082233000,-640.9281,0.00016238,2]
[425992496,1782082233000,-151.0,0.00016338,2]
[425992500,1782082233000,-500.0,0.00016438,2]
[425992515,1782082233000,-168.64,0.00016712,2]
[425992513,1782082233000,-500.0,0.00016602,2]
[425992502,1782082233000,-500.0,0.00016438,2]
[425992437,1782082233000,-310.0,0.00015075,2]
[425992479,1782082233000,-162.14671957,0.00016116,2]
[425992432,1782082233000,-300.0,0.00015011,2]
[425992385,1782082233000,-150.0,0.00014575,2]
[425992449,1782082233000,-255.0,0.00015696,2]
[425992517,1782082233000,-500.0,0.00016876,2]
[425992392,1782082233000,-355.0,0.00014578,2]
[425992394,1782082233000,-321.0,0.00014595,2]
[425992398,1782082233000,-152.0,0.00014675,2]
[425992396,1782082233000,-312.0,0.00014595,2]
[425992390,1782082233000,-316.0,0.00014578,2]
[425992383,1782082233000,-150.0,0.00014575,2]
[425992388,1782082233000,-310.0,0.00014578,2]
[425992404,1782082233000,-153.0,0.00014675,2]
[425992402,1782082233000,-151.0,0.00014675,2]
[425992400,1782082233000,-151.0,0.00014675,2]
[425992408,1782082233000,-320.0,0.00014677,2]
[425992406,1782082233000,-309.0,0.00014677,2]
[425992434,1782082233000,-250.0,0.00015011,2]
[425992414,1782082233000,-500.0,0.00014685,2]
[425992410,1782082233000,-316.0,0.00014685,2]
[425992416,1782082233000,-309.0,0.00014724,2]
[425992418,1782082233000,-600.0,0.00014901,2]
[425992422,1782082233000,-600.0,0.00014901,2]
[425992420,1782082233000,-300.0,0.00014901,2]
[425992424,1782082233000,-311.0,0.00014927,2]
[425992426,1782082233000,-500.0,0.00014959,2]
[425992427,1782082233000,-311.0,0.0001501,2]
[425992429,1782082233000,-300.0,0.00015011,2]
[425992441,1782082233000,-500.0,0.00015233,2]
[425992443,1782082233000,-9999.99,0.0001531,2]
[425992445,1782082233000,-15787.2,0.0001531,2]
[425992447,1782082233000,-500.0,0.00015507,2]
[425992412,1782082233000,-314.0,0.00014685,2]
[425992504,1782082233000,-500.0,0.00016438,2]
[425992463,1782082233000,-394.21558569,0.00016116,2]
[425992510,1782082233000,-500.0,0.00016438,2]
[425992567,1782082233000,-193.0,0.0002,2]
[425992577,1782082233000,-7622.24,0.0002,2]
[425992581,1782082233000,-500.0,0.00020137,2]
[425992584,1782082233000,-212.25,0.0002039,2]
[425992579,1782082233000,-1672.7364795,0.00020093,2]
[425992582,1782082233000,-151.0,0.00020381,2]
[425992569,1782082233000,-151.0,0.0002,2]
[425992566,1782082233000,-154.0,0.0002,2]
[425992586,1782082233000,-1734.62772924,0.00020641,2]
[425992571,1782082233000,-155.0,0.0002,2]
[425992575,1782082233000,-164.0,0.0002,2]
[425992588,1782082233000,-1000.0,0.00020645,2]
[425992589,1782082233000,-230.98,0.00020799,2]
[425992564,1782082233000,-217.0,0.0002,2]
[425992591,1782082233000,-166.66,0.0002088,2]
[425992597,1782082233000,-193.0,0.00021,2]
[425992602,1782082233000,-170.26,0.00021139,2]
[425992599,1782082233000,-157.0,0.00021,2]
[425992601,1782082233000,-289.0,0.00021,2]
[425992593,1782082233000,-217.0,0.00021,2]
[425992606,1782082233000,-166.66,0.0002132,2]
[425992611,1782082233000,-3050.55459708,0.00021659,2]
[425992604,1782082233000,-1798.80895522,0.00021189,2]
[425992610,1782082233000,-4150.78533993,0.00021604,2]
[425992608,1782082233000,-1810.24466007,0.00021604,2]
[425992612,1782082233000,-151.0,0.00021737,2]
[425992613,1782082233000,-200.0,0.00021737,2]
[425992508,1782082233000,-500.0,0.00016438,2]
[425992595,1782082233000,-353.0,0.00021,2]
[425992565,1782082233000,-353.0,0.0002,2]
[425992573,1782082233000,-289.0,0.0002,2]
[425992563,1782082233000,-157.43207842,0.0002,2]
[425992506,1782082233000,-500.0,0.00016438,2]
[425992519,1782082233000,-433.0,0.00016906,2]
[425992559,1782082233000,-151.0,0.000199,2]
[425992511,1782082233000,-189.5586054,0.00016438,2]
[425992523,1782082233000,-500.0,0.0001715,2]
[425992525,1782082233000,-1354.84326157,0.000173,2]
[425992527,1782082233000,-1354.84326157,0.000174,2]
[425992531,1782082233000,-184.48,0.00017444,2]
[425992533,1782082233000,-1316.3,0.00017507,2]
[425992534,1782082233000,-1354.84326157,0.000176,2]
[425992539,1782082233000,-350.0,0.00018,2]
[425992537,1782082233000,-1354.84326157,0.000178,2]
[425992547,1782082233000,-200.0,0.00018137,2]
[425992541,1782082233000,-614.28,0.00018072,2]
[425992529,1782082233000,-177.72356873,0.00017424,2]
[425992521,1782082233000,-1354.84326157,0.000171,2]
[425992543,1782082233000,-150.0,0.00018079,2]
[425992545,1782082233000,-212.25,0.00018124,2]
[425992562,1782082233000,-164.0,0.0002,2]
[425992560,1782082233000,-151.0,0.000199,2]
[425992558,1782082233000,-151.0,0.000199,2]
[425992557,1782082233000,-1613.0535,0.00019545,2]
[425992554,1782082233000,-166.65,0.00018919,2]
[425992561,1782082233000,-698.7300019,0.0002,2]
[425992614,1782082233000,-151.0,0.00021737,2]
[425992556,1782082233000,-1288.15,0.00019143,2]
[425992553,1782082233000,-841.63,0.00018674,2]
[425992549,1782082233000,-2245.05,0.00018356,2]
[425992551,1782082233000,-1500.0,0.00018449,2]
[425992555,1782082233000,-1555.5,0.00018997,2]
[425992631,1782082234000,-151.0,0.00021737,2]
[425992632,1782082234000,-151.0,0.00021737,2]
[425992637,1782082234000,-151.0,0.00021737,2]
[425992635,1782082234000,-151.0,0.00021737,2]
[425992639,1782082234000,-151.0,0.00021737,2]
[425992636,1782082234000,-151.0,0.00021737,2]
[425992638,1782082234000,-151.0,0.00021737,2]
[425992642,1782082234000,-151.0,0.00021737,2]
[425992640,1782082234000,-151.0,0.00021737,2]
[425992633,1782082234000,-151.0,0.00021737,2]